bitfinex-derivatives/quotes_SOLF0:USTF0_20250425
["timestamp","ask_amount","ask_price","bid_price","bid_amount"]
[1745571071036,8.3082,154.4,154.37,5.69492458]
[1745571071333,12.16882458,154.42,154.37,5.69492458]
[1745571071531,28.91492458,154.44,154.39,5.69492458]
[1745571072033,6.4734,154.43,154.4,6.4744]
[1745571072535,28.91492458,154.44,154.41,6.4739]
[1745571072837,28.91492458,154.44,154.39,5.69492458]
[1745571073135,6.4738,154.42,154.4,6.4744]
[1745571073436,6.4738,154.42,154.39,5.69492458]
[1745571073635,6.4738,154.42,154.4,6.4744]
[1745571073835,28.91492458,154.44,154.39,5.69492458]
[1745571074236,28.91492458,154.44,154.4,6.4742]
[1745571074433,28.91492458,154.44,154.39,5.69492458]
[1745571074737,5.69492458,154.44,154.41,6.4738]
[1745571074936,12.16802458,154.44,154.41,6.4738]
[1745571075138,6.4731,154.44,154.41,12.16872458]
[1745571077338,6.4731,154.44,154.42,6.4737]
[1745571079041,6.4731,154.44,154.41,12.16882458]
[1745571080546,6.4733,154.43,154.41,12.16882458]
[1745571080951,3.8181,154.45,154.42,6.4737]
[1745571081150,6.4733,154.44,154.41,5.69492458]
[1745571081549,6.4733,154.43,154.41,12.16892458]
[1745571082446,5.69492458,154.44,154.39,5.69492458]
[1745571082650,5.69492458,154.42,154.38,23.22]
[1745571082850,5.69492458,154.42,154.37,5.69492458]
[1745571083047,6.4752,154.39,154.36,6.476]
[1745571083248,5.69492458,154.4,154.36,6.476]
[1745571083547,6.4752,154.39,154.36,6.476]
[1745571084452,6.4755,154.38,154.36,6.476]
[1745571084651,5.69492458,154.4,154.36,6.476]
[1745571084951,6.4755,154.38,154.36,6.476]
[1745571085249,5.69492458,154.4,154.34,28.91492458]
[1745571085450,5.69492458,154.38,154.32,5.69492458]
[1745571085650,5.69492458,154.38,154.32,12.17252458]
[1745571086150,5.69492458,154.38,154.33,6.4775]
[1745571086343,5.69492458,154.38,154.32,5.69492458]
[1745571086545,6.4767,154.35,154.32,5.69492458]
[1745571087049,6.4767,154.35,154.32,12.17272458]
[1745571087454,6.4772,154.34,154.32,12.17272458]
[1745571088754,6.4772,154.34,154.32,5.69492458]
[1745571089152,5.69492458,154.36,154.31,37.33691492]
[1745571089653,5.69492458,154.36,154.31,14.11691492]
[1745571090550,5.69492458,154.36,154.31,7.63871492]
[1745571091452,2.0186,154.38,154.32,6.4779]
[1745571091754,5.69492458,154.37,154.32,12.17282458]
[1745571091954,6.4771,154.34,154.32,12.17282458]
[1745571092154,6.4771,154.34,154.32,5.69492458]
[1745571092557,6.4768,154.35,154.32,5.69492458]
[1745571093156,6.4768,154.35,154.32,12.17282458]
[1745571093456,6.4771,154.34,154.32,5.69492458]
[1745571093657,5.69492458,154.37,154.32,12.17282458]
[1745571093853,6.4771,154.34,154.32,12.17282458]
[1745571094658,6.4769,154.35,154.32,12.17282458]
[1745571095059,5.69492458,154.37,154.32,5.69492458]
[1745571095960,6.4773,154.34,154.32,5.69492458]
[1745571096558,6.4773,154.34,154.31,6.4782]
[1745571097756,5.69492458,154.37,154.32,12.17282458]
[1745571098560,6.477,154.35,154.32,12.17282458]
[1745571099359,6.4771,154.34,154.32,12.17282458]
[1745571099659,6.4771,154.34,154.32,5.69492458]
[1745571100658,6.4771,154.34,154.31,6.4781]
[1745571102261,6.4777,154.33,154.3,12.17342458]
[1745571103660,6.4777,154.33,154.31,6.4783]
[1745571103862,6.4772,154.34,154.31,6.4783]
[1745571105461,6.4772,154.34,154.32,6.4779]
[1745571106062,6.4772,154.34,154.31,6.4782]
[1745571110464,6.4775,154.33,154.31,6.4782]
[1745571110663,5.69492458,154.35,154.31,6.4782]
[1745571111466,6.4773,154.34,154.31,6.4782]
[1745571111764,6.4773,154.34,154.32,6.4778]
[1745571112466,12.17182458,154.35,154.32,6.4778]
[1745571114264,6.4773,154.34,154.32,6.4778]
[1745571115065,6.4773,154.34,154.31,6.4781]
[1745571115264,6.4773,154.34,154.3,5.69492458]
[1745571116065,6.4773,154.34,154.31,6.4783]
[1745571116465,6.4773,154.34,154.3,5.69492458]
[1745571116765,12.17182458,154.35,154.32,6.4777]
[1745571117165,5.69492458,154.35,154.32,6.4777]
[1745571117363,12.17182458,154.35,154.32,6.4777]
[1745571117967,6.4765,154.36,154.33,6.4772]
[1745571118165,5.69492458,154.37,154.33,6.4772]
[1745571118668,6.4768,154.35,154.32,6.4777]
[1745571120272,6.4768,154.35,154.3,5.69492458]
[1745571120273,6.4765,154.36,154.33,6.4775]
[1745571120469,2.0186,154.38,154.32,5.69492458]
[1745571120767,7.71352458,154.38,154.32,5.69492458]
[1745571121672,6.4765,154.36,154.33,6.4773]
[1745571122172,12.17142458,154.36,154.33,6.4773]
[1745571122975,6.4767,154.35,154.32,12.17272458]
[1745571123374,6.4767,154.35,154.32,6.4778]
[1745571124572,6.4771,154.34,154.31,6.4782]
[1745571125476,5.69492458,154.36,154.3,5.69492458]
[1745571125875,6.4775,154.33,154.31,6.4783]
[1745571126374,6.4773,154.34,154.31,6.4783]
[1745571127673,6.4776,154.33,154.3,6.4786]
[1745571128074,6.4776,154.33,154.29,5.69492458]
[1745571128274,5.69492458,154.34,154.29,5.69492458]
[1745571128573,12.17232458,154.34,154.31,6.4783]
[1745571128875,5.69492458,154.34,154.31,6.4783]
[1745571130277,5.69492458,154.34,154.3,6.4786]
[1745571130477,5.69492458,154.34,154.28,28.89492458]
[1745571130978,6.4782,154.32,154.29,6.479]
[1745571131378,5.69492458,154.34,154.28,28.89492458]
[1745571131581,7.69972458,154.34,154.28,28.89492458]
[1745571131878,6.4786,154.31,154.28,35.37432458]
[1745571132877,6.4786,154.31,154.28,12.17432458]
[1745571133478,6.4786,154.31,154.29,6.4791]
[1745571133679,6.4786,154.31,154.28,5.69492458]
[1745571134579,6.4786,154.31,154.29,6.4792]
[1745571135377,6.4786,154.31,154.28,12.17432458]
[1745571136180,12.17292458,154.32,154.29,6.4791]
[1745571136583,12.17292458,154.32,154.28,5.69492458]
[1745571136779,6.4783,154.31,154.28,12.17412458]
[1745571137883,6.4783,154.31,154.29,6.4791]
[1745571139481,6.4783,154.31,154.28,12.17422458]
[1745571139680,6.4783,154.31,154.28,5.69492458]
[1745571140084,6.4788,154.3,154.28,5.69492458]
[1745571141280,6.4788,154.3,154.28,12.17442458]
[1745571141482,6.4785,154.31,154.28,12.17442458]
[1745571141680,6.4785,154.31,154.28,5.69492458]
[1745571141873,5.69492458,154.33,154.28,12.17432458]
[1745571142077,6.4787,154.31,154.28,12.17432458]
[1745571143281,6.4788,154.3,154.28,12.17432458]
[1745571143981,6.4784,154.31,154.28,12.17432458]
[1745571144182,23.2,154.35,154.31,6.4781]
[1745571144478,28.89492458,154.35,154.31,6.4781]
[1745571144682,6.4773,154.34,154.31,6.4781]
[1745571144882,6.4773,154.34,154.32,6.4778]
[1745571145177,6.4773,154.34,154.3,5.69492458]
[1745571145481,6.4773,154.34,154.31,6.478]
[1745571145679,6.4773,154.34,154.3,5.69492458]
[1745571146082,35.37182458,154.35,154.3,5.69492458]
[1745571146586,28.89492458,154.35,154.3,5.69492458]
[1745571146882,6.4772,154.34,154.32,6.4779]
[1745571147688,6.4775,154.33,154.31,6.4782]
[1745571147983,6.4775,154.33,154.3,5.69492458]
[1745571148178,6.4775,154.33,154.3,12.17342458]
[1745571148384,6.4781,154.32,154.3,5.69492458]
[1745571149486,6.4784,154.31,154.28,12.17432458]
[1745571150887,6.4784,154.31,154.28,5.69492458]
[1745571151587,6.4784,154.31,154.28,12.17432458]
[1745571152586,1.8279,154.32,154.28,12.17432458]
[1745571152587,8.3061,154.32,154.29,6.479]
[1745571153488,6.4785,154.31,154.28,12.17432458]
[1745571153689,6.4785,154.31,154.28,5.69492458]
[1745571154187,6.4785,154.31,154.28,12.17432458]
[1745571157688,8.306,154.32,154.29,6.4791]
[1745571157987,1.8279,154.32,154.28,5.69492458]
[1745571158188,6.4784,154.31,154.28,12.17422458]
[1745571158387,1.8279,154.32,154.28,5.69492458]
[1745571158587,1.8279,154.32,154.3,5.69492458]
[1745571158789,1.8995,154.34,154.3,5.69492458]
[1745571159290,6.4777,154.33,154.3,12.17342458]
[1745571162192,6.4779,154.32,154.3,12.17342458]
[1745571163490,6.4779,154.32,154.3,5.69492458]
[1745571164292,6.4783,154.31,154.28,12.17432458]
[1745571165385,6.4782,154.32,154.29,6.4789]
[1745571165692,1.9299,154.33,154.29,6.4789]
[1745571165991,6.478,154.32,154.29,6.4789]
[1745571166394,1.9299,154.33,154.29,6.4789]
[1745571166595,6.478,154.32,154.29,6.4789]
[1745571167197,6.4783,154.31,154.29,6.4789]
[1745571170096,6.4788,154.3,154.28,12.17432458]
[1745571171502,6.4785,154.31,154.28,12.17432458]
[1745571171799,3.8543,154.33,154.28,5.69492458]
[1745571171993,6.4782,154.32,154.28,5.69492458]
[1745571172193,6.4782,154.32,154.29,6.4789]
[1745571173099,6.4782,154.32,154.3,6.4787]
[1745571173297,9.54922458,154.33,154.28,5.69492458]
[1745571173902,6.4781,154.32,154.28,12.17422458]
[1745571174202,9.54922458,154.33,154.28,12.17422458]
[1745571174703,6.4785,154.31,154.28,12.17422458]
[1745571175204,6.4785,154.31,154.29,6.4791]
[1745571175501,3.8543,154.33,154.3,5.69492458]
[1745571175700,1.9299,154.33,154.3,5.69492458]
[1745571175998,6.4774,154.34,154.31,6.4779]
[1745571176605,29.6769,154.35,154.32,6.4778]
[1745571176802,23.2,154.35,154.32,6.4778]
[1745571177906,6.4771,154.34,154.31,6.4781]
[1745571179804,29.6768,154.35,154.3,5.69492458]
[1745571180109,5.69492458,154.37,154.32,5.69492458]
[1745571180303,23.18,154.38,154.32,5.69492458]
[1745571180508,6.4759,154.37,154.32,5.69492458]
[1745571180907,6.4759,154.37,154.34,5.69492458]
[1745571181905,6.4759,154.37,154.34,12.17182458]
[1745571182404,17.96862458,154.39,154.36,6.4762]
[1745571182710,10.3083,154.39,154.36,12.17112458]
[1745571183106,8.4602,154.39,154.37,6.4758]
[1745571183907,23.18,154.41,154.38,6.4754]
[1745571184111,23.18,154.41,154.36,5.69492458]
[1745571184609,6.4746,154.4,154.37,6.4754]
[1745571185111,6.4741,154.42,154.38,5.69492458]
[1745571185408,9.60882458,154.43,154.38,5.69492458]
[1745571185809,6.4739,154.42,154.39,6.4749]
[1745571186313,5.69492458,154.45,154.4,5.69492458]
[1745571186513,30.89072458,154.47,154.42,5.69492458]
[1745571187816,6.473,154.44,154.42,5.69492458]
[1745571188416,6.4727,154.45,154.42,5.69492458]
[1745571189617,6.4727,154.45,154.42,12.16862458]
[1745571193017,37.36252458,154.47,154.42,5.69492458]
[1745571193218,30.89072458,154.47,154.42,5.69492458]
[1745571193416,7.71072458,154.47,154.42,5.69492458]
[1745571193822,7.71072458,154.47,154.44,6.4727]
[1745571194013,2.0158,154.47,154.44,5.69492458]
[1745571194213,5.69492458,154.49,154.44,5.69492458]
[1745571194719,6.4711,154.49,154.46,6.4719]
[1745571194920,27.1285,154.5,154.46,5.69492458]
[1745571195220,33.5991,154.5,154.47,6.4714]
[1745571197517,23.18,154.5,154.47,6.4715]
[1745571197719,12.16512458,154.51,154.47,6.4715]
[1745571198224,6.4707,154.5,154.47,12.16642458]
[1745571198929,6.4708,154.49,154.47,5.69492458]
[1745571199225,5.69492458,154.51,154.47,5.69492458]
[1745571199819,6.4706,154.5,154.47,12.16652458]
[1745571200828,23.16,154.53,154.49,5.69492458]
[1745571201324,6.4698,154.52,154.49,12.16542458]
[1745571202830,6.47,154.51,154.49,5.69492458]
[1745571204226,6.4692,154.53,154.49,5.69492458]
[1745571204427,3.7325,154.55,154.51,5.69492458]
[1745571204731,6.4688,154.54,154.52,6.4695]
[1745571206233,6.4688,154.54,154.51,12.16482458]
[1745571206832,10.2009,154.55,154.52,6.4695]
[1745571207737,3.7325,154.55,154.51,5.69492458]
[1745571208031,5.69492458,154.53,154.49,5.69492458]
[1745571208332,6.4702,154.51,154.49,5.69492458]
[1745571208536,5.69492458,154.53,154.49,5.69492458]
[1745571208828,6.4696,154.52,154.49,5.69492458]
[1745571209035,5.69492458,154.53,154.49,5.69492458]
[1745571209333,5.69492458,154.53,154.47,5.69492458]
[1745571209529,6.4709,154.49,154.47,5.69492458]
[1745571210335,6.4712,154.48,154.47,5.69492458]
[1745571210637,6.4712,154.48,154.45,12.16712458]
[1745571211740,6.4719,154.47,154.45,5.69492458]
[1745571212038,5.69492458,154.49,154.45,5.69492458]
[1745571212339,6.4719,154.47,154.45,5.69492458]
[1745571212735,6.472,154.46,154.43,29.6331]
[1745571212940,5.69492458,154.49,154.41,466.06]
[1745571213237,6.4727,154.45,154.43,5.69492458]
[1745571213439,25.1672,154.48,154.43,5.69492458]
[1745571213936,6.4723,154.46,154.43,12.16802458]
[1745571216040,6.4718,154.47,154.44,6.4728]
[1745571216640,6.4721,154.46,154.43,12.16802458]
[1745571217335,6.4721,154.46,154.44,6.4728]
[1745571217537,1.9655,154.5,154.45,5.69492458]
[1745571217740,1.9655,154.5,154.48,5.69492458]
[1745571217939,1.9655,154.5,154.46,5.69492458]
[1745571218140,6.4715,154.48,154.45,5.69492458]
[1745571218843,6.4715,154.48,154.45,12.16722458]
[1745571219137,6.4715,154.48,154.45,5.69492458]
[1745571219940,5.69492458,154.49,154.43,5.69492458]
[1745571220238,5.69492458,154.49,154.43,12.16802458]
[1745571220444,6.4725,154.45,154.43,5.69492458]
[1745571221944,6.4723,154.46,154.43,5.69492458]
[1745571222337,6.4723,154.46,154.43,12.16802458]
[1745571223851,6.4725,154.45,154.43,5.69492458]
[1745571224347,6.4725,154.45,154.43,12.16812458]
[1745571225746,6.4729,154.44,154.43,5.69492458]
[1745571225943,6.4729,154.44,154.41,28.85492458]
[1745571226354,6.4729,154.44,154.42,6.4737]
[1745571229354,6.4727,154.45,154.43,6.4732]
[1745571229554,5.69492458,154.47,154.43,5.69492458]
[1745571229858,6.4724,154.46,154.43,12.16782458]
[1745571231561,6.4724,154.46,154.44,6.4728]
[1745571231761,7.69852458,154.49,154.43,5.69492458]
[1745571232154,7.69852458,154.49,154.45,6.4722]
[1745571232457,6.4712,154.48,154.45,12.16712458]
[1745571232654,7.69852458,154.49,154.45,5.69492458]
[1745571232859,14.16962458,154.49,154.46,6.472]
[1745571233452,14.16962458,154.49,154.47,6.4715]
[1745571234560,6.4712,154.48,154.46,6.4718]
[1745571235056,6.4712,154.48,154.45,12.16722458]
[1745571235259,7.69852458,154.49,154.43,5.69492458]
[1745571235459,5.69492458,154.47,154.42,5.69492458]
[1745571236062,5.69492458,154.47,154.42,12.16832458]
[1745571236764,6.4726,154.45,154.42,12.16832458]
[1745571237862,6.4726,154.45,154.43,6.4733]
[1745571240466,6.4722,154.46,154.44,6.4729]
[1745571240968,6.4725,154.45,154.43,6.4731]
[1745571241259,5.69492458,154.45,154.4,5.69492458]
[1745571241658,6.4737,154.43,154.4,12.16922458]
[1745571242169,5.69492458,154.45,154.4,12.16922458]
[1745571242666,6.4735,154.43,154.4,12.16922458]
[1745571242865,6.4735,154.43,154.41,6.4741]
[1745571243265,6.4737,154.42,154.4,5.69492458]
[1745571243766,6.4737,154.42,154.4,12.16932458]
[1745571244066,6.4735,154.43,154.4,12.16932458]
[1745571245167,6.4738,154.42,154.4,12.16932458]
[1745571246770,6.4735,154.43,154.41,6.4741]
[1745571246963,5.69492458,154.47,154.42,5.69492458]
[1745571247361,6.4725,154.45,154.43,6.4733]
[1745571248368,5.69492458,154.47,154.44,6.4725]
[1745571248668,1.9345,154.48,154.44,12.16742458]
[1745571248970,1.9345,154.48,154.45,6.4723]
[1745571249666,5.69492458,154.51,154.46,5.69492458]
[1745571249970,3.8022,154.54,154.48,5.69492458]
[1745571250171,6.4699,154.52,154.49,6.4706]
[1745571250671,6.4699,154.52,154.48,5.69492458]
[1745571251264,7.61012458,154.54,154.48,5.69492458]
[1745571251568,1.9152,154.54,154.5,5.69492458]
[1745571252267,8.3841,154.54,154.51,6.4695]
[1745571252571,1.9152,154.54,154.5,5.69492458]
[1745571252770,35.32342458,154.55,154.52,6.4693]
[1745571253173,28.85492458,154.55,154.52,6.4693]
[1745571253773,28.85492458,154.55,154.51,6.4698]
[1745571254575,6.4692,154.53,154.5,12.16512458]
[1745571254870,28.85492458,154.55,154.5,12.16512458]
[1745571255071,6.4696,154.52,154.5,5.69492458]
[1745571255373,5.69492458,154.53,154.48,5.69492458]
[1745571255672,6.4704,154.5,154.47,5.69492458]
[1745571255971,5.69492458,154.51,154.46,23.16]
[1745571256171,5.69492458,154.51,154.45,5.69492458]
[1745571256365,6.471,154.49,154.46,6.4718]
[1745571257073,6.4712,154.48,154.45,12.16722458]
[1745571257781,6.4719,154.47,154.45,5.69492458]
[1745571258076,30.85612458,154.51,154.45,5.69492458]
[1745571258475,6.4713,154.48,154.45,12.16712458]
[1745571258674,6.4713,154.48,154.45,5.69492458]
[1745571259271,6.4713,154.48,154.46,6.472]
[1745571260080,6.4713,154.48,154.45,12.16722458]
[1745571260765,6.4713,154.48,154.46,6.4719]
[1745571262575,6.4713,154.48,154.45,12.16722458]
[1745571262877,6.4717,154.47,154.45,12.16722458]
[1745571263176,30.85612458,154.51,154.45,5.69492458]
[1745571263474,5.69492458,154.49,154.45,5.69492458]
[1745571264291,6.4719,154.47,154.45,5.69492458]
[1745571266078,6.472,154.46,154.43,35.32812458]
[1745571266573,6.4725,154.45,154.43,35.32812458]
[1745571266779,5.69492458,154.47,154.43,5.69492458]
[1745571267080,6.4727,154.45,154.43,5.69492458]
[1745571268080,6.4729,154.44,154.42,12.16832458]
[1745571269585,6.4727,154.45,154.42,12.16832458]
[1745571270181,6.4729,154.44,154.42,12.16832458]
[1745571270677,6.4733,154.43,154.42,5.69492458]
[1745571271780,6.473,154.44,154.42,5.69492458]
[1745571272283,1.9264,154.46,154.42,12.16832458]
[1745571272784,6.4727,154.45,154.42,12.16832458]
[1745571272983,1.9264,154.46,154.42,12.16832458]
[1745571273384,6.4725,154.45,154.42,12.16832458]
[1745571273885,6.4725,154.45,154.43,6.4733]
[1745571274390,8.3986,154.46,154.42,5.69492458]
[1745571274584,6.4722,154.46,154.42,5.69492458]
[1745571274780,5.69492458,154.49,154.44,5.69492458]
[1745571274983,6.4715,154.48,154.44,5.69492458]
[1745571275487,6.4715,154.48,154.45,6.4724]
[1745571276286,6.4715,154.48,154.46,6.472]
[1745571276984,12.16592458,154.49,154.46,6.472]
[1745571277191,5.69492458,154.49,154.44,5.69492458]
[1745571277589,12.16612458,154.49,154.44,5.69492458]
[1745571278392,5.69492458,154.49,154.45,6.4723]
[1745571278992,6.4713,154.48,154.45,6.4723]
[1745571279295,5.69492458,154.49,154.45,6.4723]
[1745571279590,6.4715,154.48,154.45,6.4723]
[1745571280393,6.4716,154.47,154.45,6.4723]
[1745571280795,6.4716,154.47,154.44,12.16762458]
[1745571281598,6.4716,154.47,154.45,6.4723]
[1745571283997,6.4714,154.48,154.45,6.4723]
[1745571284296,6.4714,154.48,154.44,5.69492458]
[1745571284697,6.4716,154.47,154.45,6.4721]
[1745571286598,6.4714,154.48,154.46,6.472]
[1745571287095,5.69492458,154.49,154.44,5.69492458]
[1745571287397,6.4714,154.48,154.45,6.4722]
[1745571287798,5.69492458,154.49,154.45,6.4722]
[1745571288096,5.69492458,154.49,154.44,12.16772458]
[1745571288493,6.472,154.47,154.44,12.16772458]
[1745571288997,6.4722,154.46,154.44,12.16772458]
[1745571290097,6.4722,154.46,154.44,5.69492458]
[1745571290797,6.4722,154.46,154.44,12.16782458]
[1745571293199,6.4718,154.47,154.44,12.16782458]
[1745571293601,5.69492458,154.49,154.44,5.69492458]
[1745571293897,25.114,154.5,154.46,5.69492458]
[1745571294400,31.5846,154.5,154.47,6.4716]
[1745571294900,8.4246,154.5,154.47,6.4716]
[1745571295400,8.4246,154.5,154.48,6.4712]
[1745571296602,8.4246,154.5,154.47,6.4714]
[1745571296802,5.69492458,154.49,154.42,5.69492458]
[1745571297005,5.69492458,154.49,154.44,6.4727]
[1745571297303,6.4714,154.48,154.44,6.4727]
[1745571297703,5.69492458,154.49,154.46,6.472]
[1745571297904,12.16602458,154.49,154.44,5.69492458]
[1745571298104,5.69492458,154.49,154.44,5.69492458]
[1745571298805,6.4713,154.48,154.45,6.4722]
[1745571299006,5.69492458,154.49,154.44,5.69492458]
[1745571299508,12.16592458,154.49,154.46,6.4718]
[1745571299700,5.69492458,154.49,154.46,6.4718]
[1745571300709,1.954,154.5,154.48,6.4712]
[1745571301207,8.4247,154.5,154.47,6.4714]
[1745571303707,6.4708,154.49,154.47,6.4714]
[1745571305405,7.64892458,154.5,154.46,5.69492458]
[1745571305608,7.64892458,154.5,154.45,23.14]
[1745571306107,5.69492458,154.48,154.45,23.14]
[1745571306299,5.69492458,154.48,154.42,28.83492458]
[1745571306503,5.69492458,154.46,154.42,28.83492458]
[1745571306808,5.69492458,154.44,154.4,13.32645439]
[1745571307304,12.16812458,154.44,154.41,6.4741]
[1745571307602,5.69492458,154.44,154.4,19.80095439]
[1745571307808,5.69492458,154.42,154.4,7.63152981]
[1745571308201,6.4741,154.41,154.4,7.63152981]
[1745571308412,5.69492458,154.42,154.37,91.57835772]
[1745571308614,6.476,154.37,154.34,5.69492458]
[1745571308812,5.69492458,154.37,154.33,119.08899239]
[1745571309117,6.4765,154.36,154.33,119.08899239]
[1745571309519,5.69492458,154.37,154.33,112.61169239]
[1745571309819,12.17092458,154.37,154.33,112.61169239]
[1745571310018,12.17092458,154.37,154.33,119.08909239]
[1745571310421,12.17092458,154.37,154.33,112.61169239]
[1745571310822,5.69492458,154.37,154.33,112.61169239]
[1745571311022,5.69492458,154.39,154.34,5.69492458]
[1745571311222,5.69492458,154.39,154.36,6.4762]
[1745571311428,5.69492458,154.39,154.34,5.69492458]
[1745571311722,23.14,154.4,154.35,6.4764]
[1745571311922,6.4752,154.39,154.35,6.4764]
[1745571312121,12.17012458,154.39,154.35,6.4764]
[1745571312717,5.69492458,154.39,154.33,5.69492458]
[1745571312923,5.69492458,154.37,154.32,23.14]
[1745571313115,5.69492458,154.37,154.32,28.83492458]
[1745571313313,5.69492458,154.37,154.34,6.4768]
[1745571313521,5.69492458,154.37,154.32,28.83492458]
[1745571313725,5.69492458,154.39,154.34,5.69492458]
[1745571314021,12.17022458,154.39,154.34,5.69492458]
[1745571314222,5.69492458,154.39,154.34,5.69492458]
[1745571315223,6.4756,154.38,154.35,6.4764]
[1745571316224,12.17002458,154.39,154.36,6.4762]
[1745571316624,5.69492458,154.39,154.34,5.69492458]
[1745571316921,5.69492458,154.39,154.35,6.4764]
[1745571316922,6.4757,154.38,154.35,6.4764]
[1745571318425,6.4757,154.38,154.34,12.17182458]
[1745571318829,6.4757,154.38,154.34,5.69492458]
[1745571320522,6.4757,154.38,154.35,6.4764]
[1745571320921,12.17002458,154.39,154.34,5.69492458]
[1745571321128,12.17002458,154.39,154.36,6.4762]
[1745571321319,5.69492458,154.39,154.34,5.69492458]
[1745571321523,11.51142458,154.43,154.38,5.69492458]
[1745571321723,9.56262458,154.43,154.4,6.4745]
[1745571321924,9.56262458,154.43,154.38,5.69492458]
[1745571322328,6.4738,154.42,154.39,6.4747]
[1745571323731,6.4738,154.42,154.4,6.4745]
[1745571323930,12.16842458,154.43,154.4,6.4745]
[1745571324431,6.4738,154.42,154.4,6.4745]
[1745571324631,5.69492458,154.43,154.39,6.4748]
[1745571325632,6.4739,154.42,154.39,6.4748]
[1745571325925,6.4739,154.42,154.39,6.4749]
[1745571326733,35.32802458,154.44,154.4,5.69492458]
[1745571327030,5.69492458,154.44,154.4,5.69492458]
[1745571327325,3.8833,154.45,154.4,5.69492458]
[1745571327531,471.71492458,154.46,154.42,5.69492458]
[1745571327829,5.69492458,154.46,154.42,5.69492458]
[1745571328030,12.16712458,154.46,154.43,6.4731]
[1745571328631,6.4725,154.45,154.43,6.4731]
[1745571328933,5.69492458,154.46,154.43,6.4731]
[1745571329233,12.16722458,154.46,154.43,6.4731]
[1745571330133,6.4725,154.45,154.42,12.16842458]
[1745571330933,6.4725,154.45,154.43,6.4733]
[1745571331333,6.4725,154.45,154.42,5.69492458]
[1745571331534,6.4725,154.45,154.42,12.16842458]
[1745571332232,5.69492458,154.44,154.4,28.85492458]
[1745571332635,6.4735,154.43,154.4,12.16922458]
[1745571332937,5.69492458,154.44,154.4,5.69492458]
[1745571333133,6.4741,154.42,154.4,5.69492458]
[1745571333433,5.69492458,154.44,154.4,5.69492458]
[1745571333932,6.474,154.42,154.4,5.69492458]
[1745571334135,5.69492458,154.44,154.4,5.69492458]
[1745571334334,6.4736,154.43,154.4,12.16942458]
[1745571334535,6.4736,154.43,154.4,5.69492458]
[1745571334935,6.4736,154.43,154.4,12.16932458]
[1745571337242,5.69492458,154.44,154.4,12.16932458]
[1745571337744,6.4738,154.42,154.4,12.16932458]
[1745571337944,6.4738,154.42,154.4,5.69492458]
[1745571338241,5.69492458,154.44,154.4,5.69492458]
[1745571338437,5.69492458,154.44,154.4,12.16932458]
[1745571338438,6.4736,154.43,154.4,12.16932458]
[1745571340240,6.4738,154.42,154.4,12.16932458]
[1745571340444,5.69492458,154.44,154.4,12.16922458]
[1745571340946,6.4737,154.43,154.4,12.16922458]
[1745571341345,5.69492458,154.44,154.41,6.4741]
[1745571341642,12.16802458,154.44,154.41,6.4741]
[1745571342342,6.4733,154.43,154.41,6.4741]
[1745571342550,6.4733,154.43,154.4,12.16932458]
[1745571342745,6.4733,154.43,154.4,5.69492458]
[1745571343042,1.9496,154.46,154.42,6.4736]
[1745571343246,23.16,154.47,154.42,12.16852458]
[1745571343444,28.85492458,154.47,154.42,5.69492458]
[1745571343743,6.4723,154.46,154.43,6.4733]
[1745571343951,5.69492458,154.49,154.44,5.69492458]
[1745571344247,5.723,154.52,154.46,5.69492458]
[1745571344248,11.41792458,154.52,154.46,5.69492458]
[1745571344447,28.83492458,154.53,154.48,5.69492458]
[1745571344639,5.69492458,154.54,154.5,12.16512458]
[1745571344843,5.69492458,154.54,154.5,5.69492458]
[1745571345347,5.69492458,154.54,154.51,6.4697]
[1745571346247,12.16362458,154.54,154.5,12.16512458]
[1745571346946,6.4687,154.54,154.5,12.16512458]
[1745571347447,6.4687,154.54,154.51,6.4699]
[1745571348050,6.4691,154.53,154.5,12.16512458]
[1745571349043,6.4696,154.52,154.5,12.16512458]
[1745571349249,5.69492458,154.54,154.48,28.83492458]
[1745571349851,6.4702,154.51,154.48,35.30592458]
[1745571352147,5.69492458,154.52,154.48,28.83492458]
[1745571352548,5.69492458,154.52,154.48,5.69492458]
[1745571353155,6.4702,154.51,154.48,12.16602458]
[1745571353956,6.4705,154.5,154.48,12.16602458]
[1745571354556,6.4705,154.5,154.48,5.69492458]